Workbook

Sheet Лист1
A1: Ст. №6
I2: Потеря напора
B3: № участа | C3: тепловая нагрузка на участке, Вт | D3: Расход, кг/ч | E3: Расход, м3/ч | F3: Длина, м | G3: Диаметр трубопровода ,мм | H3: Скорость, м/с | I3: на 1 м трубопровода | J3: На участке | K3: коэффицент местного сопротивления | L3: Потери на сопротивлении, Па | M3: Общие, Па
B4: 1 | C4: 26160 | D4: =(3.6*C4)/(4.187*25) -> 899.6990685 | E4: =D4/971.8 -> 0.9258068209 | F4: 9.9 | G4: 40 | H4: 0.21 | I4: =J4/F4 -> 14.44747475 | J4: 143.03 | K4: 2 | L4: =(((H4^2)/(2*9.81))*971.8*K4)*9.81 -> 42.85638 | M4: =L4+J4 -> 185.88638
B5: 2 | C5: 26160 | D5: =(3.6*C5)/(4.187*25) -> 899.6990685 | E5: =D5/971.8 -> 0.9258068209 | F5: 1.7 | G5: 40 | H5: 0.21 | I5: =J5/F5 -> 14.44705882 | J5: 24.56 | K5: 1 | L5: =(((H5^2)/(2*9.81))*971.8*K5)*9.81 -> 21.42819 | M5: =L5+J5 -> 45.98819
B6: 3 | C6: 19170 | D6: 659.2978266 | E6: 0.6784295396 | F6: 14.2 | G6: 40 | H6: 0.15 | I6: =J6/F6 -> 8.183098592 | J6: 116.2 | K6: 1 | L6: =(((H6^2)/(2*9.81))*971.8*K6)*9.81 -> 10.93275 | M6: 127.13275
B7: 4 | C7: 15280 | D7: 525.5123 | E7: 0.5407617822 | F7: 8.96 | G7: 40 | H7: 0.12 | I7: 5.399553571 | J7: 48.38 | K7: 1 | L7: 6.99696 | M7: 55.37696
B8: 5 | C8: 11706 | D8: 402.5946979 | E8: 0.4142773182 | F8: 5.35 | G8: 40 | H8: 0.09 | I8: 0.4485981308 | J8: 2.4 | K8: 1 | L8: 3.93579 | M8: 6.33579
B9: 6 | C9: 7612 | D9: 261.7931693 | E9: 0.2693899664 | F9: 11.68 | G9: 40 | H9: 0.06 | I9: 0.2157534247 | J9: 2.52 | K9: 2 | L9: 3.49848 | M9: 6.01848
B10: 7 | C10: 4726 | D10: 162.5373776 | E10: 0.1672539387 | F10: 6 | G10: 40 | H10: 0.037 | I10: 0.09666666667 | J10: 0.58 | K10: 3 | L10: 1.9955913 | M10: 2.5755913
B11: 8 | C11: 4726 | D11: 162.5373776 | E11: 0.1672539387 | F11: 2.75 | G11: 20 | H11: 0.15 | I11: 19.46181818 | J11: 53.52 | K11: 2 | L11: 21.8655 | M11: 75.3855
B12: 8' | C12: 4726 | D12: 162.5373776 | E12: 0.1672539387 | F12: 0.36 | G12: 20 | H12: 0.15 | I12: 19.47222222 | J12: 7.01 | K12: 7.5 | L12: 81.995625 | M12: 89.005625
B13: 9 | C13: 4726 | D13: 162.5373776 | E13: 0.1672539387 | F13: 3.22 | G13: 20 | H13: 0.15 | I13: 19.46273292 | J13: 62.67 | K13: 5 | L13: 54.66375 | M13: 117.33375
B14: 9' | C14: 4726 | D14: 162.5373776 | E14: 0.1672539387 | F14: 0.8 | G14: 20 | H14: 0.15 | I14: 19.4625 | J14: 15.57 | K14: 3 | L14: 32.79825 | M14: 48.36825
B15: 10 | C15: 4726 | D15: 162.5373776 | E15: 0.1672539387 | F15: 6 | G15: 40 | H15: 0.04 | I15: 0.09666666667 | J15: 0.58 | K15: 1.5 | L15: 1.16616 | M15: 1.74616
B16: 11 | C16: 7612 | D16: 261.7931693 | E16: 0.2693899664 | F16: 8.18 | G16: 40 | H16: 0.06 | I16: 0.2151589242 | J16: 1.76 | K16: 1.5 | L16: 2.62386 | M16: 4.38386
B17: 12 | C17: 11706 | D17: 402.5946979 | E17: 0.4142773182 | F17: 5.2 | G17: 40 | H17: 0.09 | I17: 0.4480769231 | J17: 2.33 | K17: 1.5 | L17: 5.903685 | M17: 8.233685
B18: 13 | C18: 15280 | D18: 525.5123 | E18: 0.5407617822 | F18: 8.96 | G18: 40 | H18: 0.12 | I18: 5.399553571 | J18: 48.38 | K18: 1.5 | L18: 10.49544 | M18: 58.87544
B19: 14 | C19: 19170 | D19: 659.2978266 | E19: 0.6784295396 | F19: 9.78 | G19: 40 | H19: 0.15 | I19: 8.183026585 | J19: 80.03 | K19: 1.5 | L19: 16.399125 | M19: 96.429125
B20: 14' | C20: 26160 | D20: 899.6990685 | E20: 0.9258068209 | F20: 6.7 | G20: 40 | H20: 0.21 | I20: 14.44776119 | J20: 96.8 | K20: 2 | L20: 42.85638 | M20: 139.65638
D21: 0 | E21: 0 | F21: =SUM(F4:F20) -> 109.74 | I21: 0 | L21: 0 | M21: 0
J22: =SUM(J4:J21) -> 706.32 | L22: =SUM(L4:L21) -> 362.4119163 | M22: =SUM(M4:M21) -> 1068.731916
A25: Ст №5 | I25: Потеря напора
B26: № участа | C26: тепловая нагрузка на участке, Вт | D26: Расход, кг/ч | E26: Расход, м3/ч | F26: Длина, м | G26: Диаметр трубопровода ,мм | H26: Скорость, м/с | I26: на 1 м трубопровода | J26: На участке | K26: коэффицент местного сопротивления | L26: Потери на сопротивлении, Па | M26: Общие, Па
B27: 1 | C27: 26160 | D27: =(3.6*C27)/(4.187*25) -> 899.6990685 | E27: =D27/971.8 -> 0.9258068209 | F27: 9.9 | G27: 40 | H27: 0.21 | I27: =J27/F27 -> 14.44747475 | J27: 143.03 | K27: 2 | L27: =(((H27^2)/(2*9.81))*971.8*K27)*9.81 -> 42.85638 | M27: =L27+J27 -> 185.88638
B28: 2 | C28: 26160 | D28: =(3.6*C28)/(4.187*25) -> 899.6990685 | E28: =D28/971.8 -> 0.9258068209 | F28: 1.7 | G28: 40 | H28: 0.21 | I28: =J28/F28 -> 14.44705882 | J28: 24.56 | K28: 1 | L28: =(((H28^2)/(2*9.81))*971.8*K28)*9.81 -> 21.42819 | M28: =L28+J28 -> 45.98819
B29: 3 | C29: 19170 | D29: 659.2978266 | E29: 0.6784295396 | F29: 14.2 | G29: 40 | H29: 0.15 | I29: =J29/F29 -> 8.183098592 | J29: 116.2 | K29: 1 | L29: =(((H29^2)/(2*9.81))*971.8*K29)*9.81 -> 10.93275 | M29: 127.13275
B30: 4 | C30: 15280 | D30: 525.5123 | E30: 0.5407617822 | F30: 8.96 | G30: 40 | H30: 0.12 | I30: 5.399553571 | J30: 48.38 | K30: 1 | L30: =(((H30^2)/(2*9.81))*971.8*K30)*9.81 -> 6.99696 | M30: 55.37696
B31: 5 | C31: 11706 | D31: 402.5946979 | E31: 0.4142773182 | F31: 5.35 | G31: 40 | H31: 0.09 | I31: 0.4485981308 | J31: 2.4 | K31: 1 | L31: 3.93579 | M31: 6.33579
B32: 6 | C32: 7612 | D32: 261.7931693 | E32: 0.2693899664 | F32: 11.68 | G32: 40 | H32: 0.06 | I32: 0.2157534247 | J32: 2.52 | K32: 3 | L32: 5.24772 | M32: 7.76772
B33: 15 | C33: 2906 | D33: 99.94363506 | E33: 0.1028438311 | F33: 3.27 | G33: 15 | H33: 0.16 | I33: 30.23547401 | J33: 98.87 | K33: 5.5 | L33: 68.41472 | M33: 167.28472
B34: 16 | C34: 2906 | D34: 99.94363506 | E34: 0.1028438311 | F34: 3.11 | G34: 15 | H34: 0.16 | I34: 30.23794212 | J34: 94.04 | K34: 7.5 | L34: 93.2928 | M34: 187.3328
B35: 17 | C35: 2906 | D35: 99.94363506 | E35: 0.1028438311 | F35: 0.8 | G35: 15 | H35: 0.16 | I35: 30.2375 | J35: 24.19 | K35: 3 | L35: 37.31712 | M35: 61.50712
B36: 11 | C36: 7612 | D36: 261.7931693 | E36: 0.2693899664 | F36: 8.18 | G36: 40 | H36: 0.06 | I36: 0.2151589242 | J36: 1.76 | K36: 1.5 | L36: 2.62386 | M36: 4.38386
B37: 12 | C37: 11706 | D37: 402.5946979 | E37: 0.4142773182 | F37: 5.2 | G37: 40 | H37: 0.09 | I37: 0.4480769231 | J37: 2.33 | K37: 1.5 | L37: 5.903685 | M37: 8.233685
B38: 13 | C38: 15280 | D38: 525.5123 | E38: 0.5407617822 | F38: 8.96 | G38: 40 | H38: 0.12 | I38: 5.399553571 | J38: 48.38 | K38: 1.5 | L38: 10.49544 | M38: 58.87544
B39: 14 | C39: 19170 | D39: 659.2978266 | E39: 0.6784295396 | F39: 9.78 | G39: 40 | H39: 0.15 | I39: 8.183026585 | J39: 80.03 | K39: 1.5 | L39: 16.399125 | M39: 96.429125
B40: 14' | C40: 26160 | D40: 899.6990685 | E40: 0.9258068209 | F40: 6.7 | G40: 40 | H40: 0.21 | I40: 14.44776119 | J40: 96.8 | K40: 2 | L40: 42.85638 | M40: 139.65638
M41: =SUM(M27:M40) -> 1152.19092
A43: Ст №4 | I43: Потеря напора
B44: № участа | C44: тепловая нагрузка на участке, Вт | D44: Расход, кг/ч | E44: Расход, м3/ч | F44: Длина, м | G44: Диаметр трубопровода ,мм | H44: Скорость, м/с | I44: на 1 м трубопровода | J44: На участке | K44: коэффицент местного сопротивления | L44: Потери на сопротивлении, Па | M44: Общие, Па
B45: 1 | C45: 26160 | D45: =(3.6*C45)/(4.187*25) -> 899.6990685 | E45: =D45/971.8 -> 0.9258068209 | F45: 9.9 | G45: 40 | H45: 0.21 | I45: =J45/F45 -> 14.44747475 | J45: 143.03 | K45: 2 | L45: =(((H45^2)/(2*9.81))*971.8*K45)*9.81 -> 42.85638 | M45: =L45+J45 -> 185.88638
B46: 2 | C46: 26160 | D46: =(3.6*C46)/(4.187*25) -> 899.6990685 | E46: =D46/971.8 -> 0.9258068209 | F46: 1.7 | G46: 40 | H46: 0.21 | I46: =J46/F46 -> 14.44705882 | J46: 24.56 | K46: 1 | L46: =(((H46^2)/(2*9.81))*971.8*K46)*9.81 -> 21.42819 | M46: =L46+J46 -> 45.98819
B47: 3 | C47: 19170 | D47: 659.2978266 | E47: 0.6784295396 | F47: 14.2 | G47: 40 | H47: 0.15 | I47: =J47/F47 -> 8.183098592 | J47: 116.2 | K47: 1 | L47: =(((H47^2)/(2*9.81))*971.8*K47)*9.81 -> 10.93275 | M47: 127.13275
B48: 4 | C48: 15280 | D48: 525.5123 | E48: 0.5407617822 | F48: 8.96 | G48: 40 | H48: 0.12 | I48: 5.399553571 | J48: 48.38 | K48: 1 | L48: =(((H48^2)/(2*9.81))*971.8*K48)*9.81 -> 6.99696 | M48: 55.37696
B49: 5 | C49: 11706 | D49: 402.5946979 | E49: 0.4142773182 | F49: 5.35 | G49: 40 | H49: 0.09 | I49: 0.4485981308 | J49: 2.4 | K49: 3 | L49: 11.80737 | M49: 14.20737
B50: 18 | C50: 4094 | D50: 140.8015285 | E50: 0.1448873519 | F50: 2.75 | G50: 20 | H50: 0.12 | I50: 13.71272727 | J50: 37.71 | K50: 3 | L50: 20.99088 | M50: 58.70088
B51: 18э | C51: 4094 | D51: 140.8015285 | E51: 0.1448873519 | F51: 1.65 | G51: 15 | H51: 0.22 | I51: 13.70909091 | J51: 22.62 | K51: 4 | L51: 94.07024 | M51: 116.69024
B52: 19 | C52: 4094 | D52: 140.8015285 | E52: 0.1448873519 | F52: 7.51 | G52: 20 | H52: 0.12 | I52: 13.71238349 | J52: 102.98 | K52: 5.5 | L52: 38.48328 | M52: 141.46328
B53: 20 | C53: 4094 | D53: 140.8015285 | E53: 0.1448873519 | F53: 0.8 | G53: 20 | H53: 0.12 | I53: 13.7125 | J53: 10.97 | K53: 3 | L53: 20.99088 | M53: 31.96088
B54: 12 | C54: 11706 | D54: 402.5946979 | E54: 0.4142773182 | F54: 5.2 | G54: 40 | H54: 0.09 | I54: 0.4480769231 | J54: 2.33 | K54: 1.5 | L54: 5.903685 | M54: 8.233685
B55: 13 | C55: 15280 | D55: 525.5123 | E55: 0.5407617822 | F55: 8.96 | G55: 40 | H55: 0.12 | I55: 5.399553571 | J55: 48.38 | K55: 1.5 | L55: 10.49544 | M55: 58.87544
B56: 14 | C56: 19170 | D56: 659.2978266 | E56: 0.6784295396 | F56: 9.78 | G56: 40 | H56: 0.15 | I56: 8.183026585 | J56: 80.03 | K56: 1.5 | L56: 16.399125 | M56: 96.429125
B57: 14' | C57: 26160 | D57: 899.6990685 | E57: 0.9258068209 | F57: 6.7 | G57: 40 | H57: 0.21 | I57: 14.44776119 | J57: 96.8 | K57: 2 | L57: 42.85638 | M57: 139.65638
M58: =SUM(M45:M57) -> 1080.60156
A61: Ст №3 | I61: Потеря напора
B62: № участа | C62: тепловая нагрузка на участке, Вт | D62: Расход, кг/ч | E62: Расход, м3/ч | F62: Длина, м | G62: Диаметр трубопровода ,мм | H62: Скорость, м/с | I62: на 1 м трубопровода | J62: На участке | K62: коэффицент местного сопротивления | L62: Потери на сопротивлении, Па | M62: Общие, Па
B63: 1 | C63: 26160 | D63: =(3.6*C63)/(4.187*25) -> 899.6990685 | E63: =D63/971.8 -> 0.9258068209 | F63: 9.9 | G63: 40 | H63: 0.21 | I63: =J63/F63 -> 14.44747475 | J63: 143.03 | K63: 2 | L63: =(((H63^2)/(2*9.81))*971.8*K63)*9.81 -> 42.85638 | M63: =L63+J63 -> 185.88638
B64: 2 | C64: 26160 | D64: =(3.6*C64)/(4.187*25) -> 899.6990685 | E64: =D64/971.8 -> 0.9258068209 | F64: 1.7 | G64: 40 | H64: 0.21 | I64: =J64/F64 -> 14.44705882 | J64: 24.56 | K64: 1 | L64: =(((H64^2)/(2*9.81))*971.8*K64)*9.81 -> 21.42819 | M64: =L64+J64 -> 45.98819
B65: 3 | C65: 19170 | D65: 659.2978266 | E65: 0.6784295396 | F65: 14.2 | G65: 40 | H65: 0.15 | I65: =J65/F65 -> 8.183098592 | J65: 116.2 | K65: 1 | L65: =(((H65^2)/(2*9.81))*971.8*K65)*9.81 -> 10.93275 | M65: 127.13275
B66: 4 | C66: 15280 | D66: 525.5123 | E66: 0.5407617822 | F66: 8.96 | G66: 40 | H66: 0.12 | I66: 5.399553571 | J66: 48.38 | K66: 3 | L66: =(((H66^2)/(2*9.81))*971.8*K66)*9.81 -> 20.99088 | M66: 69.37088
B67: 21 | C67: 3574 | D67: 122.9176021 | E67: 0.126484464 | F67: 3.46 | G67: 20 | H67: 0.12 | I67: 12 | J67: 41.52 | K67: 5.5 | L67: 38.48328 | M67: 80.00328
B68: 22 | C68: 3574 | D68: 122.9176021 | E68: 0.126484464 | F68: 4.35 | G68: 20 | H68: 0.12 | I68: 12 | J68: 52.2 | K68: 6.5 | L68: 45.48024 | M68: 97.68024
B69: 23 | C69: 3574 | D69: 122.9176021 | E69: 0.126484464 | F69: 3.6 | G69: 20 | H69: 0.12 | I69: 12 | J69: 43.2 | K69: 6.5 | L69: 45.48024 | M69: 88.68024
B70: 24 | C70: 3574 | D70: 122.9176021 | E70: 0.126484464 | F70: 0.8 | G70: 20 | H70: 0.12 | I70: 12 | J70: 9.6 | K70: 3 | L70: 20.99088 | M70: 30.59088
B71: 13 | C71: 15280 | D71: 525.5123 | E71: 0.5407617822 | F71: 8.96 | G71: 40 | H71: 0.12 | I71: 5.399553571 | J71: 48.38 | K71: 1.5 | L71: 10.49544 | M71: 58.87544
B72: 14 | C72: 19170 | D72: 659.2978266 | E72: 0.6784295396 | F72: 9.78 | G72: 40 | H72: 0.15 | I72: 8.183026585 | J72: 80.03 | K72: 1.5 | L72: 16.399125 | M72: 96.429125
B73: 14' | C73: 26160 | D73: 899.6990685 | E73: 0.9258068209 | F73: 6.7 | G73: 40 | H73: 0.21 | I73: 14.44776119 | J73: 96.8 | K73: 2 | L73: 42.85638 | M73: 139.65638
M74: =SUM(M63:M73) -> 1020.293785
A77: Ст №2 | I77: Потеря напора
B78: № участа | C78: тепловая нагрузка на участке, Вт | D78: Расход, кг/ч | E78: Расход, м3/ч | F78: Длина, м | G78: Диаметр трубопровода ,мм | H78: Скорость, м/с | I78: на 1 м трубопровода | J78: На участке | K78: коэффицент местного сопротивления | L78: Потери на сопротивлении, Па | M78: Общие, Па
B79: 1 | C79: 26160 | D79: =(3.6*C79)/(4.187*25) -> 899.6990685 | E79: =D79/971.8 -> 0.9258068209 | F79: 9.9 | G79: 40 | H79: 0.21 | I79: =J79/F79 -> 14.44747475 | J79: 143.03 | K79: 2 | L79: =(((H79^2)/(2*9.81))*971.8*K79)*9.81 -> 42.85638 | M79: =L79+J79 -> 185.88638
B80: 2 | C80: 26160 | D80: =(3.6*C80)/(4.187*25) -> 899.6990685 | E80: =D80/971.8 -> 0.9258068209 | F80: 1.7 | G80: 40 | H80: 0.21 | I80: =J80/F80 -> 14.44705882 | J80: 24.56 | K80: 1 | L80: =(((H80^2)/(2*9.81))*971.8*K80)*9.81 -> 21.42819 | M80: =L80+J80 -> 45.98819
B81: 3 | C81: 19170 | D81: 659.2978266 | E81: 0.6784295396 | F81: 14.2 | G81: 40 | H81: 0.15 | I81: =J81/F81 -> 8.183098592 | J81: 116.2 | K81: 3 | L81: =(((H81^2)/(2*9.81))*971.8*K81)*9.81 -> 32.79825 | M81: 148.99825
B82: 25 | C82: 3890 | D82: 133.7855266 | E82: 0.1376677574 | F82: 2.86 | G82: 20 | H82: 0.12 | I82: 13.71328671 | J82: 39.22 | K82: 3 | L82: =(((H82^2)/(2*9.81))*971.8*K82)*9.81 -> 20.99088 | M82: 60.21088
B83: 25' | C83: 3890 | D83: 133.7855266 | E83: 0.1376677574 | F83: 1.7 | G83: 15 | H83: 0.22 | I83: 55.74705882 | J83: 94.77 | K83: 4 | L83: 94.07024 | M83: 188.84024
B84: 26 | C84: 3890 | D84: 133.7855266 | E84: 0.1376677574 | F84: 3 | G84: 20 | H84: 0.12 | I84: 13.71333333 | J84: 41.14 | K84: 5 | L84: 34.9848 | M84: 76.1248
B85: 26' | C85: 3890 | D85: 133.7855266 | E85: 0.1376677574 | F85: 1 | G85: 15 | H85: 0.22 | I85: 55.75 | J85: 55.75 | K85: 4 | L85: 94.07024 | M85: 149.82024
B86: 27 | C86: 3890 | D86: 133.7855266 | E86: 0.1376677574 | F86: 3 | G86: 20 | H86: 0.12 | I86: 13.71333333 | J86: 41.14 | K86: 4.5 | L86: 31.48632 | M86: 72.62632
B87: 14 | C87: 19170 | D87: 659.2978266 | E87: 0.6784295396 | F87: 9.78 | G87: 40 | H87: 0.15 | I87: 8.183026585 | J87: 80.03 | K87: 1.5 | L87: 16.399125 | M87: 96.429125
B88: 14' | C88: 26160 | D88: 899.6990685 | E88: 0.9258068209 | F88: 6.7 | G88: 40 | H88: 0.21 | I88: 14.44776119 | J88: 96.8 | K88: 2 | L88: 42.85638 | M88: 139.65638
M89: =SUM(M79:M88) -> 1164.580805
A92: Ст №1 | I92: Потеря напора
B93: № участа | C93: тепловая нагрузка на участке, Вт | D93: Расход, кг/ч | E93: Расход, м3/ч | F93: Длина, м | G93: Диаметр трубопровода ,мм | H93: Скорость, м/с | I93: на 1 м трубопровода | J93: На участке | K93: коэффицент местного сопротивления | L93: Потери на сопротивлении, Па | M93: Общие, Па
B94: 1 | C94: 26160 | D94: =(3.6*C94)/(4.187*25) -> 899.6990685 | E94: =D94/971.8 -> 0.9258068209 | F94: 9.9 | G94: 40 | H94: 0.21 | I94: =J94/F94 -> 14.44747475 | J94: 143.03 | K94: 2 | L94: =(((H94^2)/(2*9.81))*971.8*K94)*9.81 -> 42.85638 | M94: =L94+J94 -> 185.88638
B95: 2 | C95: 26160 | D95: =(3.6*C95)/(4.187*25) -> 899.6990685 | E95: =D95/971.8 -> 0.9258068209 | F95: 1.7 | G95: 40 | H95: 0.21 | I95: =J95/F95 -> 14.44705882 | J95: 24.56 | K95: 3 | L95: =(((H95^2)/(2*9.81))*971.8*K95)*9.81 -> 64.28457 | M95: =L95+J95 -> 88.84457
B96: 28 | C96: 6990 | D96: 240.4012419 | E96: 0.2473772813 | F96: 2.71 | G96: 25 | H96: 0.14 | I96: =J96/F96 -> 13.19926199 | J96: 35.77 | K96: 3 | L96: =(((H96^2)/(2*9.81))*971.8*K96)*9.81 -> 28.57092 | M96: =L96+J96 -> 64.34092
B97: 28' | C97: 6990 | D97: 240.4012419 | E97: 0.2473772813 | F97: 1.5 | G97: 20 | H97: 0.22 | I97: 39.22666667 | J97: 58.84 | K97: 4 | L97: 94.07024 | M97: 152.91024
B98: 29 | C98: 6990 | D98: 240.4012419 | E98: 0.2473772813 | F98: 3.75 | G98: 25 | H98: 0.14 | I98: 13.19733333 | J98: 49.49 | K98: 7.5 | L98: 71.4273 | M98: 120.9173
B99: 30 | C99: 6990 | D99: 240.4012419 | E99: 0.2473772813 | F99: 4.3 | G99: 25 | H99: 0.14 | I99: 13.19767442 | J99: 56.75 | K99: 7.5 | L99: 71.4273 | M99: 128.1773
B100: 31 | C100: 6990 | D100: 240.4012419 | E100: 0.2473772813 | F100: 1.4 | G100: 25 | H100: 0.14 | I100: 13.2 | J100: 18.48 | K100: 5.5 | L100: 52.38002 | M100: 70.86002
B101: 32 | C101: 6990 | D101: 240.4012419 | E101: 0.2473772813 | F101: 0.8 | G101: 25 | H101: 0.14 | I101: 13.2 | J101: 10.56 | K101: 4.5 | L101: 42.85638 | M101: 53.41638
B102: 14' | C102: 26160 | D102: 899.6990685 | E102: 0.9258068209 | F102: 6.7 | G102: 40 | H102: 0.21 | I102: 14.44776119 | J102: 96.8 | K102: 2 | L102: 42.85638 | M102: 139.65638
M103: =SUM(M94:M102) -> 1005.00949

Sheet Лист2

Sheet Лист3
